fUST/lending_fUST_20240703
["ID","MTS","AMOUNT","RATE_DAILY","PERIOD"]
[330936304,1719948646151,-728.0,0.00014512,2]
[330936305,1719948646160,-728.0,0.00014512,2]
[330936306,1719948646169,-728.0,0.00014512,2]
[330936307,1719948646179,-728.0,0.00014512,2]
[330936308,1719948646189,-153.0,0.00014512,2]
[330936309,1719948646201,-728.0,0.00014512,2]
[330936310,1719948646211,-728.0,0.00014512,2]
[330936311,1719948646221,-728.0,0.00014512,2]
[330936312,1719948646231,-728.0,0.00014512,2]
[330936313,1719948646241,-728.0,0.00014512,2]
[330936314,1719948646250,-728.0,0.00014512,2]
[330936315,1719948646259,-728.0,0.00014512,2]
[330936316,1719948646268,-728.0,0.00014512,2]
[330936317,1719948646278,-728.0,0.00014512,2]
[330936318,1719948646287,-728.0,0.00014512,2]
[330936319,1719948646296,-728.0,0.00014512,2]
[330936320,1719948646305,-221.59576323,0.00014512,2]
[330936321,1719948646368,-506.40423677,0.00014512,2]
[330936322,1719948646378,-728.0,0.00014512,2]
[330936323,1719948646388,-728.0,0.00014512,2]
[330936324,1719948646399,-153.0,0.00014512,2]
[330936325,1719948646409,-151.0,0.00014512,2]
[330936326,1719948646419,-151.0,0.00014512,2]
[330936327,1719948646428,-151.0,0.00014512,2]
[330936328,1719948646438,-151.0,0.00014512,2]
[330936329,1719948646447,-247.366016,0.00014516,2]
[330936330,1719948646458,-247.366016,0.00014516,2]
[330936331,1719948646469,-151.0,0.00014516,2]
[330936332,1719948646480,-151.0,0.00014516,2]
[330936334,1719948646490,-151.0,0.00014516,2]
[330936335,1719948646500,-151.0,0.00014516,2]
[330936336,1719948646509,-151.0,0.00014516,2]
[330936337,1719948646518,-151.0,0.00014516,2]
[330936338,1719948646527,-225.307672,0.00014516,2]
[330936339,1719948646539,-151.0,0.00014516,2]
[330936340,1719948646548,-728.0,0.00014516,2]
[330936341,1719948646557,-728.0,0.00014516,2]
[330936342,1719948646566,-728.0,0.00014516,2]
[330936343,1719948646575,-728.0,0.00014516,2]
[330936344,1719948646585,-568.14480903,0.00014516,2]
[330936345,1719948646599,-159.85519097,0.00014516,2]
[330936346,1719948646608,-728.0,0.00014516,2]
[330936347,1719948646617,-728.0,0.00014516,2]
[330936348,1719948646627,-728.0,0.00014516,2]
[330936349,1719948646637,-728.0,0.00014516,2]
[330936350,1719948646646,-728.0,0.00014516,2]
[330936351,1719948646655,-728.0,0.00014516,2]
[330936352,1719948646665,-728.0,0.00014516,2]
[330936353,1719948646674,-535.97330903,0.00014516,2]
[330936357,1719948646984,-192.02669097,0.00014516,2]
[330936358,1719948646994,-728.0,0.00014516,2]
[330936359,1719948647004,-728.0,0.00014516,2]
[330936360,1719948647014,-728.0,0.00014516,2]
[330936362,1719948647024,-728.0,0.00014516,2]
[330936363,1719948647034,-728.0,0.00014516,2]
[330936365,1719948647044,-728.0,0.00014516,2]
[330936367,1719948647054,-728.0,0.00014516,2]
[330936369,1719948647063,-728.0,0.00014516,2]
[330936371,1719948647073,-728.0,0.00014516,2]
[330936372,1719948647083,-728.0,0.00014516,2]
[330936373,1719948647095,-728.0,0.00014516,2]
[330936374,1719948647106,-728.0,0.00014516,2]
[330936375,1719948647116,-728.0,0.00014516,2]
[330936376,1719948647126,-728.0,0.00014516,2]
[330936377,1719948647135,-153.0,0.00014516,2]
[330936378,1719948647146,-151.0,0.00014519,2]
[330936379,1719948647158,-151.0,0.00014519,2]
[330936380,1719948647168,-151.0,0.00014519,2]
[330936381,1719948647178,-151.0,0.00014519,2]
[330936382,1719948647189,-151.0,0.00014519,2]
[330936383,1719948647200,-1234.16,0.0001452,2]
[330936384,1719948647210,-1234.16,0.0001452,2]
[330936385,1719948647220,-151.0,0.00014521,2]
[330936386,1719948647231,-151.0,0.00014521,2]
[330936387,1719948647240,-151.0,0.00014521,2]
[330936388,1719948647250,-151.0,0.00014521,2]
[330936389,1719948647260,-1234.16,0.00014521,2]
[330936390,1719948647271,-622.02121511,0.00014556,2]
[330936391,1719948647280,-1234.16,0.00014592,2]
[330936392,1719948647292,-153.0,0.000146,2]
[330936393,1719948647302,-153.0,0.000146,2]
[330936395,1719948647313,-153.0,0.000146,2]
[330936397,1719948647323,-206.0554141,0.000146,2]
[330936398,1719948647333,-333.800602,0.000146,2]
[330936400,1719948647342,-206.0554141,0.000146,2]
[330936402,1719948647352,-153.0,0.000146,2]
[330936404,1719948647362,-153.0,0.000146,2]
[330936406,1719948647372,-153.0,0.000146,2]
[330936408,1719948647383,-153.0,0.000146,2]
[330936410,1719948647393,-206.0554141,0.000146,2]
[330936412,1719948647404,-153.0,0.000146,2]
[330936414,1719948647415,-153.0,0.000146,2]
[330936415,1719948647426,-151.0,0.0001462,2]
[330936416,1719948647437,-203.34,0.0001462,2]
[330936417,1719948647447,-151.0,0.0001462,2]
[330936418,1719948647463,-500.0,0.0001462,2]
[330936419,1719948647474,-500.0,0.0001462,2]
[330936420,1719948647485,-500.0,0.0001462,2]
[330936421,1719948647495,-500.0,0.0001462,2]
[330936422,1719948647507,-500.0,0.0001462,2]
[330936423,1719948647517,-500.0,0.0001462,2]
[330936424,1719948647527,-379.41721335,0.0001462,2]
[330936425,1719948647862,-500.0,0.00014072,2]
[330936426,1719948647874,-500.0,0.00014072,2]
[330936427,1719948647885,-120.58278665,0.0001462,2]
[330936428,1719948647897,-500.0,0.0001462,2]
[330936429,1719948647910,-486.07145827,0.0001462,2]
[330936430,1719948647925,-13.92854173,0.0001462,2]
[330936431,1719948647937,-500.0,0.0001462,2]
[330936432,1719948647949,-1178.65,0.0001462,2]
[330936433,1719948647960,-45.19080794,0.0001462,2]
[330936434,1719948649149,864.81792551,0.00013973,2]
[330936435,1719948703493,222.0135446,0.00013699,2]
[330936436,1719948716617,2469.3647555,0.00013699,2]
[330936437,1719948799854,705.58178986,0.00013971,2]
[330936439,1719948894124,24900.0,0.00013075,2]
[330936440,1719948894363,866.47660554,0.00013973,2]
[330936441,1719948954291,1706.6204806,0.00013699,2]
[330936444,1719949101716,512.3143884,9.999e-05,2]
[330936448,1719949152235,661.12832609,9.999e-05,2]
[330936449,1719949162830,298.75379421,9.999e-05,2]
[330936450,1719949175240,992.01052108,0.00013972,2]
[330936451,1719949250468,173.851768,0.00013699,2]
[330936452,1719949438405,24900.0,0.00013074,2]
[330936453,1719949441187,300.0,0.00013072,2]
[330936454,1719949442948,300.0,0.00013072,2]
[330936455,1719949455593,1072.62226078,0.00013972,2]
[330936459,1719949740963,1117.58090122,0.00013971,2]
[330936460,1719949767660,-300.0,0.0001407,2]
[330936461,1719949767688,-300.0,0.0001407,2]
[330936462,1719949767716,-40.0092868,0.0001407,2]
[330936463,1719949767753,-459.9907132,0.0001407,2]
[330936464,1719949767783,-180.0185736,0.0001407,2]
[330936465,1719949792732,-551.2014264,0.0001407,2]
[330936466,1719949792762,-114.40823187,0.0001407,2]
[330936467,1719949792799,-665.60965827,0.0001407,2]
[330936468,1719949812476,173.851769,0.00013699,2]
[330936487,1719949831968,-612.735,0.0001407,2]
[330936518,1719949837906,-522.81710986,0.0001407,2]
[330936519,1719949837917,-175.59489588,0.0001407,2]
[330936535,1719949840184,-124.40510412,0.0001407,2]
[330936536,1719949840194,-300.0,0.0001407,2]
[330936537,1719949840204,-75.59741286,0.0001407,2]
[330936538,1719949840216,-424.40258714,0.0001407,2]
[330936539,1719949840226,-13094.76,0.0001407,2]
[330936540,1719949840236,-500.0,0.00014071,2]
[330936541,1719949840245,-228.14403191,0.00014071,2]
[330936542,1719949840257,-762.28596809,0.00014071,2]
[330936543,1719949840267,-390.70740241,0.00014071,2]
[330936566,1719949843085,-109.29259759,0.00014071,2]
[330936568,1719949843094,-500.0,0.00014071,2]
[330936569,1719949843103,-500.0,0.00014071,2]
[330936570,1719949843112,-1005.83,0.00014071,2]
[330936571,1719949843123,-848.16,0.00014071,2]
[330936572,1719949843134,-972.81,0.00014071,2]
[330936573,1719949843143,-500.0,0.00014071,2]
[330936574,1719949843153,-599.01,0.00014071,2]
[330936575,1719949843162,-500.0,0.00014071,2]
[330936576,1719949843172,-736.97,0.00014071,2]
[330936577,1719949843181,-561.23,0.00014071,2]
[330936578,1719949843190,-544.26,0.00014071,2]
[330936579,1719949843199,-500.0,0.00014071,2]
[330936580,1719949843208,-500.0,0.00014071,2]
[330936581,1719949843216,-500.0,0.00014071,2]
[330936582,1719949843226,-595.10283752,0.00014071,2]
[330936583,1719949843235,-500.0,0.00014071,2]
[330936584,1719949843382,-500.0,0.00014071,2]
[330936585,1719949843391,-500.0,0.00014071,2]
[330936586,1719949843401,-500.0,0.00014071,2]
[330936587,1719949843412,-556.74,0.00014071,2]
[330936588,1719949843423,-500.0,0.00014071,2]
[330936589,1719949843434,-500.0,0.00014071,2]
[330936590,1719949843443,-500.0,0.00014071,2]
[330936591,1719949843452,-595.69,0.00014071,2]
[330936592,1719949843461,-406.10750862,0.00014071,2]
[330936593,1719949843470,-541.22,0.00014071,2]
[330936594,1719949843479,-500.0,0.00014071,2]
[330936595,1719949843488,-500.0,0.00014071,2]
[330936596,1719949843498,-1471.54,0.00014071,2]
[330936597,1719949843507,-75.50535677,0.00014071,2]
[330936616,1719949846021,-424.49464323,0.00014071,2]
[330936617,1719949846031,-500.0,0.00014071,2]
[330936618,1719949846040,-271.50535677,0.00014071,2]
[330936633,1719949892585,333.62,0.00010959,2]
[330936638,1719949974703,24900.0,0.00013072,2]
[330936639,1719950021278,1134.54015864,0.00013971,2]
[330936647,1719950058708,2632.12238154,0.00013969,2]
[330936653,1719950169293,514.93493888,9.999e-05,2]
[330936664,1719950300308,597.87737426,0.0001212,2]
[330936665,1719950301783,1129.7974002,0.0001397,2]
[330936666,1719950316964,176.11081107,0.0001212,2]
[330936667,1719950319032,194.14007627,0.0001212,2]
[330936669,1719950355197,156.25,0.00014001,2]
[330936679,1719950445769,181.79793415,0.00014001,2]
[330936685,1719950475980,282.93616103,9.999e-05,2]
[330936692,1719950534589,154.86836189,0.0001212,2]
[330936693,1719950541913,176.01169437,0.0001212,2]
[330936695,1719950552604,24900.0,0.0001307,2]
[330936697,1719950562256,528.63416526,0.0001212,2]
[330936698,1719950582323,1108.51314133,0.00013969,2]
[330936699,1719950600179,5286.34479944,0.00013971,2]
[330936700,1719950602451,1284.76673272,9.999e-05,2]
[330936704,1719950641349,155.12543852,0.0001212,2]
[330936705,1719950645586,293.07017019,9.999e-05,2]
[330936707,1719950657783,203.34,0.0001212,2]
[330936708,1719950659876,457.57827588,9.999e-05,2]
[330936709,1719950669618,164.77230526,9.999e-05,2]
[330936710,1719950669997,489.76196364,0.0001212,2]
[330936712,1719950718199,373.78265909,0.0001212,2]
[330936722,1719950863402,1074.89686283,0.00013968,2]
[330936724,1719950898801,-300.0,0.00014065,2]
[330936725,1719950898833,-300.0,0.00014065,2]
[330936726,1719950898860,-41.77613584,0.00014066,2]
[330936727,1719950898895,-641.77613584,0.00014066,2]
[330936732,1719950912076,200.0,0.00025,120]
[330936733,1719950923474,-667.44718127,0.00014066,2]
[330936735,1719950923530,-667.44718127,0.00014066,2]
[330936736,1719950923589,-390.25334534,0.00014066,2]
[330936740,1719950948619,-300.0,0.00014065,2]
[330936742,1719950948646,-401.95013543,0.00014066,2]
[330936743,1719950948679,-701.95013543,0.00014066,2]
[330936745,1719950973656,-730.02814085,0.00014066,2]
[330936746,1719950973712,-730.02814085,0.00014066,2]
[330936784,1719950998633,-759.22926648,0.00014066,2]
[330936785,1719950998688,-602.92388505,0.00014066,2]
[330936818,1719951033276,-300.0,0.00014065,2]
[330936819,1719951033286,-300.0,0.00014065,2]
[330936820,1719951033295,-5614.50706734,0.00014066,2]
[330936858,1719951038337,-1732.69817476,0.00014066,2]
[330936859,1719951038347,-182.07478242,0.00014066,2]
[330936860,1719951038356,-2882.68,0.00014068,2]
[330936861,1719951038366,-1132.95,0.00014068,2]
[330936862,1719951038375,-731.27,0.00014068,2]
[330936863,1719951038384,-500.0,0.00014068,2]
[330936864,1719951038393,-500.0,0.00014068,2]
[330936865,1719951038402,-1985.79,0.00014068,2]
[330936866,1719951038411,-2403.17,0.00014068,2]
[330936867,1719951038422,-693.55,0.00014068,2]
[330936868,1719951038431,-500.0,0.00014068,2]
[330936870,1719951038440,-22.12961223,0.00014068,2]
[330936871,1719951038452,-2619.12038777,0.00014068,2]
[330936873,1719951038462,-1339.56,0.00014068,2]
[330936875,1719951038471,-13462.5,0.00014068,2]
[330936877,1719951038481,-500.0,0.00014068,2]
[330936878,1719951038490,-500.0,0.00014068,2]
[330936880,1719951038499,-967.49,0.00014068,2]
[330936882,1719951038509,-1515.02,0.00014068,2]
[330936883,1719951038518,-500.0,0.00014069,2]
[330936885,1719951038527,-500.0,0.00014069,2]
[330936887,1719951038536,-500.0,0.00014069,2]
[330936889,1719951038545,-525.55562357,0.00014069,2]
[330936891,1719951038554,-1025.47,0.00014069,2]
[330936893,1719951038564,-500.0,0.00014069,2]
[330936895,1719951038572,-500.0,0.00014069,2]
[330936896,1719951038582,-500.0,0.00014069,2]
[330936898,1719951038591,-500.0,0.00014069,2]
[330936900,1719951038600,-500.0,0.00014069,2]
[330936901,1719951038610,-500.0,0.00014069,2]
[330936903,1719951038619,-1056.01,0.00014069,2]
[330936904,1719951038629,-540.71,0.00014069,2]
[330936905,1719951038638,-500.0,0.00014069,2]
[330936906,1719951038647,-500.0,0.00014069,2]
[330936907,1719951038657,-500.0,0.00014069,2]
[330936908,1719951038667,-500.0,0.00014069,2]
[330936909,1719951038676,-500.0,0.00014069,2]
[330936910,1719951038686,-500.0,0.00014069,2]
[330936911,1719951038695,-500.0,0.00014069,2]
[330936912,1719951038705,-500.0,0.00014069,2]
[330936913,1719951038714,-500.0,0.00014069,2]
[330936914,1719951038723,-500.0,0.00014069,2]
[330936915,1719951038732,-500.0,0.00014069,2]
[330936916,1719951038741,-500.0,0.00014069,2]
[330936917,1719951038751,-899.92,0.00014069,2]
[330936918,1719951038760,-1041.24,0.00014069,2]
[330936919,1719951038770,-500.0,0.00014069,2]
[330936920,1719951038779,-500.0,0.00014069,2]
[330936921,1719951038789,-550.43610066,0.00014069,2]
[330936922,1719951038798,-500.0,0.00014069,2]
[330936923,1719951038807,-574.05,0.00014069,2]
[330936924,1719951038816,-500.0,0.00014069,2]
[330936925,1719951038826,-500.0,0.00014069,2]
[330936926,1719951038835,-500.0,0.00014069,2]
[330936927,1719951038845,-500.0,0.00014069,2]
[330936928,1719951038854,-554.79,0.00014069,2]
[330936929,1719951038863,-706.26,0.00014069,2]
[330936930,1719951038872,-537.85,0.00014069,2]
[330936931,1719951038881,-500.0,0.00014069,2]
[330936932,1719951038891,-500.0,0.00014069,2]
[330936933,1719951038901,-500.0,0.00014069,2]
[330936934,1719951038911,-197.62,0.00014069,2]
[330936935,1719951038920,-500.0,0.00014069,2]
[330936936,1719951038929,-500.0,0.00014069,2]
[330936937,1719951038939,-515.15,0.00014069,2]
[330936938,1719951038948,-500.0,0.00014069,2]
[330936939,1719951038958,-500.0,0.00014069,2]
[330936940,1719951038967,-500.0,0.00014069,2]
[330936941,1719951038976,-500.0,0.00014069,2]
[330936942,1719951038985,-1749.08873115,0.00014069,2]
[330936943,1719951038999,-1741.45126885,0.00014069,2]
[330936944,1719951039008,-500.0,0.00014069,2]
[330936945,1719951039018,-249.94,0.00014069,2]
[330936946,1719951039028,-98.4087313,0.00014069,2]
[330936947,1719951039040,-500.48665436,0.00014069,2]
[330936948,1719951039051,-3341.85,0.00014069,2]
[330936949,1719951039061,-500.0,0.00014069,2]
[330936950,1719951039071,-570.87,0.00014069,2]
[330936951,1719951039082,-500.0,0.00014069,2]
[330936952,1719951039094,-399.69907576,0.00014069,2]
[330936953,1719951039107,-100.30092424,0.00014069,2]
[330936954,1719951039117,-374.82931098,0.00014069,2]
[330936955,1719951039130,-125.17068902,0.00014069,2]
[330936956,1719951039140,-217.98,0.00014069,2]
[330936957,1719951039150,-500.0,0.00014069,2]
[330936958,1719951039160,-156.70275098,0.00014069,2]
[330936959,1719951039172,-341.9273687,0.00014069,2]
[330936973,1719951040432,-1.36988032,0.00014069,2]
[330936974,1719951040442,-500.0,0.00014069,2]
[330936975,1719951040452,-500.0,0.00014069,2]
[330936977,1719951040462,-500.0,0.00014069,2]
[330936979,1719951040476,-500.0,0.00014069,2]
[330936981,1719951040486,-500.0,0.00014069,2]
[330936983,1719951040495,-500.0,0.00014069,2]
[330936984,1719951040504,-500.0,0.00014069,2]
[330936986,1719951040514,-500.0,0.00014069,2]
[330936988,1719951040523,-500.0,0.00014069,2]
[330936989,1719951040533,-666.15,0.00014069,2]
[330936991,1719951040543,-820.89,0.00014069,2]
[330936993,1719951040552,-500.0,0.00014069,2]
[330936995,1719951040561,-500.0,0.00014069,2]
[330936997,1719951040570,-506.64,0.00014069,2]
[330936998,1719951040579,-500.0,0.00014069,2]
[330937000,1719951040588,-725.52,0.00014069,2]
[330937002,1719951040598,-500.0,0.00014069,2]
[330937005,1719951040612,-1302.12,0.00014069,2]
[330937007,1719951040625,-500.0,0.00014069,2]
[330937009,1719951040638,-6093.23,0.00014069,2]
[330937012,1719951040650,-570.78,0.00014069,2]
[330937014,1719951040663,-500.0,0.00014069,2]
[330937015,1719951040674,-204.88,0.00014069,2]
[330937016,1719951040685,-707.46,0.00014069,2]
[330937017,1719951040698,-500.0,0.00014069,2]
[330937018,1719951040710,-500.0,0.00014069,2]
[330937019,1719951040722,-500.0,0.00014069,2]
[330937020,1719951040734,-201.45814255,0.00014069,2]
[330937065,1719951043429,-500.0,0.00014068,2]
[330937066,1719951043443,-298.54185745,0.00014069,2]
[330937067,1719951043452,-227.33864255,0.00014069,2]
[330937068,1719951043470,-272.66135745,0.00014069,2]
[330937069,1719951043480,-500.0,0.00014069,2]
[330937070,1719951043653,-500.0,0.00014069,2]
[330937071,1719951043666,-500.0,0.00014069,2]
[330937072,1719951043676,-500.0,0.00014069,2]
[330937073,1719951043686,-500.0,0.00014069,2]
[330937074,1719951043695,-500.0,0.00014069,2]
[330937075,1719951043703,-500.0,0.00014069,2]
[330937076,1719951043712,-500.0,0.00014069,2]
[330937077,1719951043721,-500.0,0.00014069,2]
[330937078,1719951043730,-303.84442835,0.00014069,2]
[330937079,1719951043742,-196.15557165,0.00014069,2]
[330937080,1719951043751,-123.75976857,0.00014069,2]
[330937114,1719951125741,2831.0503943,0.00013071,2]
[330937115,1719951138194,3114.15896383,0.00013967,2]
[330937116,1719951143744,1032.36413609,0.0001397,2]
[330937130,1719951424126,983.66932762,0.00013968,2]
[330937173,1719951619732,173.851768,0.00013699,2]
[330937176,1719951624212,159.39604936,9.999e-05,2]
[330937179,1719951679200,24900.0,0.0001307,2]
[330937180,1719951706525,555.1559245,0.0001212,2]
[330937182,1719951710103,1037.32874148,0.00013967,2]
[330937184,1719951770416,153.5015463,0.00013967,2]
[330937199,1719951990465,1062.20346862,0.00013967,2]
[330937209,1719952114050,-300.0,0.00014065,2]
[330937210,1719952114077,-300.0,0.00014065,2]
[330937211,1719952114104,-90.13952863,0.00014066,2]
[330937212,1719952114270,-566.42089907,0.00014066,2]
[330937214,1719952138910,-715.27073718,0.00014066,2]
[330937215,1719952139100,-279.3552065,0.00014066,2]
[330937216,1719952163796,-300.0,0.00014065,2]
[330937217,1719952163825,-300.0,0.00014065,2]
[330937218,1719952163852,-135.16325605,0.00014066,2]
[330937219,1719952163884,-255.97395577,0.00014066,2]
[330937221,1719952188815,-754.98600029,0.00014066,2]
[330937222,1719952188858,-682.19066247,0.00014066,2]
[330937266,1719952233338,-300.0,0.00014065,2]
[330937268,1719952233348,-300.0,0.00014065,2]
[330937270,1719952233358,-1470.81,0.00014066,2]
[330937272,1719952233369,-278.52745249,0.00014066,2]
[330937274,1719952233383,-2497.94254751,0.00014066,2]
[330937277,1719952233392,-691.62,0.00014066,2]
[330937278,1719952233402,-1161.67,0.00014066,2]
[330937280,1719952233412,-500.0,0.00014066,2]
[330937282,1719952233421,-500.0,0.00014066,2]
[330937284,1719952233432,-697.17,0.00014066,2]
[330937286,1719952233441,-1699.11522746,0.00014066,2]
[330937297,1719952238457,-782.89477254,0.00014066,2]
[330937298,1719952238468,-1972.58,0.00014066,2]
[330937299,1719952238477,-500.0,0.00014066,2]
[330937300,1719952238486,-6728.97,0.00014066,2]
[330937301,1719952238496,-2703.89,0.00014066,2]
[330937302,1719952238505,-1374.93,0.00014066,2]
[330937303,1719952238515,-500.0,0.00014066,2]
[330937304,1719952238524,-500.0,0.00014066,2]
[330937305,1719952238534,-494.48,0.00014066,2]
[330937306,1719952238544,-1008.25,0.00014066,2]
[330937307,1719952238553,-500.0,0.00014066,2]
[330937309,1719952238562,-2630.83394479,0.00014066,2]
[330937310,1719952238574,-533.55,0.00014066,2]
[330937315,1719952238612,-1078.23671621,0.00014066,2]
[330937317,1719952238627,-8659.969339,0.00014066,2]
[330937318,1719952238641,-3463.47,0.00014066,2]
[330937320,1719952238652,-500.0,0.00014066,2]
[330937322,1719952238662,-1409.52,0.00014066,2]
[330937323,1719952238674,-501.31389358,0.00014066,2]
[330937324,1719952238687,-504.38664487,0.00014066,2]
[330937326,1719952238698,-500.0,0.00014067,2]
[330937327,1719952238709,-518.18,0.00014067,2]
[330937328,1719952238720,-500.0,0.00014067,2]
[330937329,1719952238732,-500.0,0.00014067,2]
[330937330,1719952238744,-500.0,0.00014067,2]
[330937331,1719952238755,-500.0,0.00014067,2]
[330937332,1719952238767,-500.0,0.00014067,2]
[330937333,1719952238781,-500.0,0.00014067,2]
[330937334,1719952238794,-508.55,0.00014067,2]
[330937335,1719952238806,-500.0,0.00014067,2]
[330937336,1719952238818,-500.0,0.00014067,2]
[330937337,1719952238828,-500.0,0.00014067,2]
[330937338,1719952238841,-500.0,0.00014067,2]
[330937339,1719952238852,-500.0,0.00014067,2]
[330937340,1719952238863,-982.74,0.00014067,2]
[330937341,1719952238876,-500.0,0.00014067,2]
[330937342,1719952238888,-500.0,0.00014067,2]
[330937343,1719952238900,-1012.01,0.00014067,2]
[330937344,1719952238910,-500.0,0.00014067,2]
[330937345,1719952238922,-870.31,0.00014067,2]
[330937346,1719952238932,-500.0,0.00014067,2]
[330937347,1719952238941,-1102.48,0.00014067,2]
[330937348,1719952238951,-500.0,0.00014067,2]
[330937349,1719952238963,-635.43,0.00014067,2]
[330937350,1719952238973,-500.0,0.00014067,2]
[330937351,1719952238985,-500.0,0.00014067,2]
[330937352,1719952238996,-500.0,0.00014067,2]
[330937353,1719952239008,-615.53,0.00014067,2]
[330937354,1719952239020,-478.2,0.00014067,2]
[330937355,1719952239031,-500.0,0.00014067,2]
[330937356,1719952239045,-500.0,0.00014067,2]
[330937357,1719952239057,-556.43154476,0.00014067,2]
[330937358,1719952239071,-676.83,0.00014067,2]
[330937359,1719952239084,-500.0,0.00014067,2]
[330937360,1719952239096,-571.36,0.00014067,2]
[330937361,1719952239107,-429.4058121,0.00014067,2]
[330937371,1719952240710,-500.0,0.00014066,2]
[330937372,1719952240721,-70.5941879,0.00014067,2]
[330937374,1719952240733,-518.66,0.00014067,2]
[330937375,1719952240745,-500.0,0.00014067,2]
[330937376,1719952240757,-500.0,0.00014067,2]
[330937377,1719952240768,-250.77,0.00014067,2]
[330937378,1719952240781,-500.0,0.00014067,2]
[330937379,1719952240793,-500.0,0.00014067,2]
[330937380,1719952240804,-376.24023143,0.00014067,2]
[330937381,1719952240816,-500.0,0.00014067,2]
[330937382,1719952240827,-500.0,0.00014067,2]
[330937383,1719952240838,-500.0,0.00014067,2]
[330937384,1719952240850,-500.0,0.00014067,2]
[330937385,1719952240862,-500.0,0.00014067,2]
[330937386,1719952240874,-735.83,0.00014067,2]
[330937387,1719952240887,-547.08,0.00014067,2]
[330937388,1719952240899,-3345.41,0.00014067,2]
[330937389,1719952240912,-500.0,0.00014067,2]
[330937390,1719952240923,-180.12,0.00014067,2]
[330937391,1719952240936,-500.0,0.00014067,2]
[330937392,1719952240947,-638.4,0.00014067,2]
[330937393,1719952240959,-261.63394479,0.00014067,2]
[330937394,1719952240971,-500.0,0.00014067,2]
[330937395,1719952240983,-500.0,0.00014067,2]
[330937396,1719952240994,-500.0,0.00014067,2]
[330937397,1719952241007,-500.0,0.00014067,2]
[330937398,1719952241019,-352.01,0.00014067,2]
[330937399,1719952241030,-695.29,0.00014067,2]
[330937400,1719952241041,-1247.86,0.00014067,2]
[330937401,1719952241053,-708.74,0.00014067,2]
[330937402,1719952241064,-786.68,0.00014067,2]
[330937403,1719952241076,-5839.35,0.00014067,2]
[330937404,1719952241087,-500.0,0.00014067,2]
[330937405,1719952241098,-411.90216455,0.00014067,2]
[330937406,1719952241110,-500.0,0.00014067,2]
[330937407,1719952241121,-500.0,0.00014067,2]
[330937408,1719952241133,-500.0,0.00014067,2]
[330937409,1719952241144,-6840.54,0.00014068,2]
[330937410,1719952241155,-500.0,0.00014068,2]
[330937411,1719952241165,-1282.93,0.00014068,2]
[330937412,1719952241176,-500.0,0.00014068,2]
[330937413,1719952241187,-729.77,0.00014068,2]
[330937414,1719952241198,-500.0,0.00014068,2]
[330937415,1719952241210,-500.0,0.00014068,2]
[330937416,1719952241220,-1080.43,0.00014068,2]
[330937417,1719952241231,-509.19,0.00014068,2]
[330937418,1719952241241,-500.0,0.00014068,2]
[330937419,1719952241252,-500.0,0.00014068,2]
[330937420,1719952241263,-500.0,0.00014068,2]
[330937421,1719952241274,-921.0,0.00014068,2]